fUST/lending_fUST_20250506
["ID","MTS","AMOUNT","RATE_DAILY","PERIOD"]
[360076911,1746538250242,-1363.62,0.00019452,2]
[360076912,1746538250252,-400.0,0.00019452,2]
[360076913,1746538250262,-7540.48,0.00019452,2]
[360076914,1746538250272,-400.0,0.00019452,2]
[360076915,1746538250282,-400.0,0.00019452,2]
[360076916,1746538250291,-5208.12,0.00019452,2]
[360076917,1746538250301,-307.28029054,0.00019452,2]
[360076918,1746538250310,-586.68,0.00019452,2]
[360076919,1746538250319,-403.1,0.00019452,2]
[360076920,1746538250329,-151.0,0.00019452,2]
[360076921,1746538250339,-400.0,0.00019452,2]
[360076922,1746538250348,-400.0,0.00019452,2]
[360076923,1746538250358,-1609.15,0.00019452,2]
[360076924,1746538250368,-400.0,0.00019452,2]
[360076925,1746538250379,-582.76,0.00019452,2]
[360076926,1746538250389,-400.0,0.00019452,2]
[360076927,1746538250398,-400.0,0.00019452,2]
[360076928,1746538250408,-2863.49,0.00019452,2]
[360076929,1746538250417,-151.0,0.00019452,2]
[360076930,1746538250427,-408.89,0.00019452,2]
[360076931,1746538250437,-2384.1,0.00019452,2]
[360076932,1746538250446,-752.98,0.00019452,2]
[360076933,1746538250455,-400.0,0.00019452,2]
[360076934,1746538250465,-400.0,0.00019452,2]
[360076935,1746538250474,-300.0,0.00019452,2]
[360076936,1746538250484,-415.73,0.00019452,2]
[360076937,1746538250494,-650.2,0.00019452,2]
[360076938,1746538250504,-400.0,0.00019452,2]
[360076939,1746538250514,-606.01,0.00019452,2]
[360076940,1746538250525,-403.29389681,0.00019452,2]
[360076941,1746538250535,-505.72161325,0.00019452,2]
[360076942,1746538250545,-400.0,0.00019452,2]
[360076943,1746538250555,-1938.83,0.00019452,2]
[360076944,1746538250566,-400.0,0.00019452,2]
[360076945,1746538250576,-400.0,0.00019452,2]
[360076946,1746538250585,-384.36037893,0.00019452,2]
[360076947,1746538250595,-2506.91,0.00019452,2]
[360076948,1746538250604,-583.52,0.00019452,2]
[360076949,1746538250614,-500.0,0.00019473,2]
[360076950,1746538250623,-500.0,0.00019473,2]
[360076951,1746538250633,-500.0,0.00019473,2]
[360076952,1746538250643,-151.0,0.000195,2]
[360076953,1746538250652,-151.0,0.000195,2]
[360076954,1746538250662,-4136.31886887,0.0001956,2]
[360076955,1746538250671,-250.0,0.0001958,2]
[360076956,1746538250680,-151.0,0.000196,2]
[360076957,1746538250690,-151.0,0.000196,2]
[360076958,1746538250700,-151.0,0.000197,2]
[360076959,1746538250711,-253.86093688,0.000197,2]
[360076960,1746538250720,-151.0,0.00019723,2]
[360076961,1746538250730,-12237.99830395,0.00019723,3]
[360076963,1746538251878,-265.81400082,0.00019178,2]
[360076964,1746538251889,-400.0,0.00019178,2]
[360076965,1746538251898,-400.0,0.00019178,2]
[360076966,1746538251908,-400.0,0.00019178,2]
[360076967,1746538251917,-151.0,0.00019329,2]
[360076968,1746538251926,-590.2,0.00019452,2]
[360076969,1746538251936,-155.196221,0.00019452,2]
[360076970,1746538251946,-400.0,0.00019452,2]
[360076971,1746538251956,-2540.28977818,0.00019723,3]
[360076980,1746539144954,490.341,0.00020958,15]
[360077011,1746539431740,-1000.0,0.00012491,2]
[360077013,1746539431750,-427.28088434,0.0001682,2]
[360077015,1746539431761,-500.0,0.0001702,2]
[360077017,1746539431772,-160.0,0.00017424,2]
[360077019,1746539431782,-500.0,0.00017726,2]
[360077021,1746539431792,-500.0,0.00017726,2]
[360077023,1746539431802,-500.0,0.00017726,2]
[360077026,1746539431813,-176.49711851,0.00017726,2]
[360077027,1746539431823,-500.0,0.00017726,2]
[360077030,1746539431832,-15253.50475333,0.00017727,2]
[360077032,1746539431843,-237.123912,0.00017727,2]
[360077034,1746539431853,-427.28088433,0.0001781,2]
[360077036,1746539431863,-27.47022295,0.00018617,2]
[360077041,1746539431908,-355.07553924,0.00018617,2]
[360077043,1746539431918,-1000.0,0.000188,2]
[360077045,1746539431928,-1000.0,0.000188,3]
[360077047,1746539431938,-1000.0,0.000188,4]
[360077050,1746539431948,-645.02742886,0.000188,2]
[360077054,1746539431958,-427.28088433,0.000188,2]
[360077057,1746539431967,-198.13690806,0.000188,2]
[360077060,1746539431977,-645.02742883,0.0001887,2]
[360077063,1746539431986,-500.0,0.00018873,2]
[360077066,1746539431996,-500.0,0.00018873,2]
[360077069,1746539432006,-500.0,0.00018873,2]
[360077072,1746539432017,-500.0,0.00018873,2]
[360077075,1746539432026,-500.0,0.00018873,2]
[360077078,1746539432036,-500.0,0.00018873,2]
[360077081,1746539432046,-500.0,0.00018873,2]
[360077084,1746539432055,-155.0,0.00018889,2]
[360077087,1746539432065,-373.38,0.0001889,3]
[360077089,1746539432076,-186.69,0.0001889,3]
[360077091,1746539432085,-560.09,0.0001889,3]
[360077093,1746539432095,-47761.59732498,0.000189,2]
[360077172,1746539437998,-322238.40267502,0.000189,2]
[360077174,1746539438008,-151.0,0.000189,2]
[360077176,1746539438017,-324.62060225,0.000189,2]
[360077178,1746539438028,-1943.48105479,0.000189,2]
[360077180,1746539438037,-645.02742883,0.00018939,2]
[360077182,1746539438047,-151.0,0.00019,2]
[360077184,1746539438056,-645.02742883,0.00019009,2]
[360077187,1746539438066,-500.0,0.00019068,2]
[360077190,1746539438075,-500.0,0.00019068,2]
[360077192,1746539438084,-500.0,0.00019068,2]
[360077194,1746539438093,-500.0,0.00019068,2]
[360077196,1746539438103,-500.0,0.00019068,2]
[360077198,1746539438111,-500.0,0.00019068,2]
[360077200,1746539438121,-500.0,0.00019068,2]
[360077202,1746539438131,-500.0,0.00019068,2]
[360077204,1746539438140,-500.0,0.00019068,2]
[360077206,1746539438149,-500.0,0.00019068,2]
[360077208,1746539438159,-500.0,0.00019068,2]
[360077210,1746539438167,-500.0,0.00019068,2]
[360077212,1746539438177,-500.0,0.00019068,2]
[360077214,1746539438186,-500.0,0.00019068,2]
[360077216,1746539438195,-500.0,0.00019068,2]
[360077218,1746539438205,-500.0,0.00019068,2]
[360077220,1746539438215,-530.76029918,0.00019068,2]
[360077222,1746539438225,-645.02742883,0.00019078,2]
[360077225,1746539438234,-151.0,0.000191,2]
[360077227,1746539438244,-151.0,0.000191,2]
[360077229,1746539438253,-348.50206363,0.00019157,2]
[360077231,1746539438262,-160.0,0.00019163,2]
[360077233,1746539438271,-5000.0,0.00019172,2]
[360077235,1746539438281,-500.0,0.00019173,2]
[360077237,1746539438290,-500.0,0.00019173,2]
[360077239,1746539438300,-500.0,0.00019173,2]
[360077241,1746539438309,-500.0,0.00019173,2]
[360077243,1746539438319,-500.0,0.00019173,2]
[360077245,1746539438328,-500.0,0.00019173,2]
[360077247,1746539438337,-500.0,0.00019173,2]
[360077249,1746539438346,-500.0,0.00019173,2]
[360077251,1746539438355,-500.0,0.00019173,2]
[360077253,1746539438365,-500.0,0.00019173,2]
[360077255,1746539438374,-500.0,0.00019173,2]
[360077257,1746539438383,-533.23340636,0.00019173,2]
[360077259,1746539438392,-500.0,0.00019173,2]
[360077261,1746539438401,-500.0,0.00019173,2]
[360077263,1746539438411,-500.0,0.00019173,2]
[360077265,1746539438421,-500.0,0.00019173,2]
[360077267,1746539438430,-500.0,0.00019173,2]
[360077269,1746539438440,-505.99404103,0.00019173,2]
[360077271,1746539438450,-500.0,0.00019173,2]
[360077273,1746539438459,-500.0,0.00019173,2]
[360077275,1746539438469,-500.0,0.00019173,2]
[360077277,1746539438479,-500.0,0.00019173,2]
[360077279,1746539438489,-500.0,0.00019173,2]
[360077281,1746539438498,-500.0,0.00019173,2]
[360077283,1746539438507,-500.0,0.00019173,2]
[360077285,1746539438516,-500.0,0.00019173,2]
[360077287,1746539438526,-500.0,0.00019173,2]
[360077289,1746539438536,-516.71584283,0.00019173,2]
[360077291,1746539438545,-500.0,0.00019173,2]
[360077293,1746539438555,-530.04952255,0.00019173,2]
[360077295,1746539438565,-500.0,0.00019173,2]
[360077297,1746539438574,-500.0,0.00019173,2]
[360077299,1746539438583,-500.0,0.00019173,2]
[360077301,1746539438593,-500.0,0.00019173,2]
[360077302,1746539438605,-500.0,0.00019173,2]
[360077305,1746539438615,-500.0,0.00019173,2]
[360077307,1746539438624,-500.0,0.00019173,2]
[360077308,1746539438633,-500.0,0.00019173,2]
[360077310,1746539438643,-400.0,0.00019178,2]
[360077332,1746539438839,-400.0,0.00019178,2]
[360077334,1746539438849,-400.0,0.00019178,2]
[360077336,1746539438859,-400.0,0.00019178,2]
[360077338,1746539438869,-400.0,0.00019178,2]
[360077340,1746539438879,-401.30935804,0.00019178,2]
[360077342,1746539438888,-400.0,0.00019178,2]
[360077344,1746539438898,-400.0,0.00019178,2]
[360077346,1746539438907,-272.93224761,0.00019178,2]
[360077348,1746539438916,-402.55365641,0.00019178,2]
[360077350,1746539438926,-400.0,0.00019178,2]
[360077352,1746539438935,-400.0,0.00019178,2]
[360077354,1746539438944,-402.94644609,0.00019178,2]
[360077356,1746539438955,-400.0,0.00019178,2]
[360077358,1746539438964,-400.0,0.00019178,2]
[360077360,1746539438974,-209.64157535,0.00019178,2]
[360077362,1746539438983,-400.84686798,0.00019178,2]
[360077364,1746539438993,-400.0,0.00019178,2]
[360077366,1746539439003,-400.0,0.00019178,2]
[360077368,1746539439012,-413.03499992,0.00019178,2]
[360077370,1746539439022,-257.3214084,0.00019178,2]
[360077372,1746539439031,-400.87151374,0.00019178,2]
[360077374,1746539439041,-400.0,0.00019178,2]
[360077376,1746539439050,-400.0,0.00019178,2]
[360077378,1746539439060,-400.0,0.00019178,2]
[360077380,1746539439069,-400.0,0.00019178,2]
[360077382,1746539439079,-504.90921476,0.00019178,2]
[360077384,1746539439088,-406.64979063,0.00019178,2]
[360077386,1746539439097,-400.0,0.00019178,2]
[360077388,1746539439107,-400.0,0.00019178,2]
[360077390,1746539439117,-401.97286654,0.00019178,2]
[360077392,1746539439126,-407.88361149,0.00019178,2]
[360077394,1746539439136,-400.0,0.00019178,2]
[360077396,1746539439145,-400.0,0.00019178,2]
[360077398,1746539439154,-400.0,0.00019178,2]
[360077400,1746539439163,-400.0,0.00019178,2]
[360077402,1746539439173,-207.06732803,0.00019178,2]
[360077403,1746539439182,-400.0,0.00019178,2]
[360077405,1746539439191,-400.95339625,0.00019178,2]
[360077407,1746539439200,-208.67633583,0.00019178,2]
[360077409,1746539439210,-404.4020155,0.00019178,2]
[360077411,1746539439219,-151.72849342,0.00019178,2]
[360077413,1746539439228,-400.0,0.00019178,2]
[360077415,1746539439237,-405.98412562,0.00019178,2]
[360077417,1746539439246,-400.76641592,0.00019178,2]
[360077419,1746539439256,-412.8869152,0.00019178,2]
[360077421,1746539439265,-400.0,0.00019178,2]
[360077423,1746539439275,-503.23780717,0.00019178,2]
[360077425,1746539439285,-405.72679758,0.00019178,2]
[360077427,1746539439294,-400.0,0.00019178,2]
[360077429,1746539439303,-401.28888995,0.00019178,2]
[360077431,1746539439312,-400.0,0.00019178,2]
[360077433,1746539439321,-400.0,0.00019178,2]
[360077435,1746539439331,-400.0,0.00019178,2]
[360077437,1746539439340,-403.97133091,0.00019178,2]
[360077439,1746539439350,-403.25345902,0.00019178,2]
[360077441,1746539439359,-400.0,0.00019178,2]
[360077443,1746539439367,-626.81,0.00019178,2]
[360077446,1746539439376,-400.0,0.00019178,2]
[360077448,1746539439386,-400.0,0.00019178,2]
[360077450,1746539439395,-400.0,0.00019178,2]
[360077453,1746539439405,-403.72300293,0.00019178,2]
[360077455,1746539439414,-400.0,0.00019178,2]
[360077456,1746539439424,-400.0,0.00019178,2]
[360077459,1746539439434,-207.46873216,0.00019178,2]
[360077461,1746539439444,-407.394944,0.00019178,2]
[360077463,1746539439453,-400.0,0.00019178,2]
[360077465,1746539439463,-403.58495225,0.00019178,2]
[360077467,1746539439473,-400.0,0.00019178,2]
[360077469,1746539439483,-400.0,0.00019178,2]
[360077471,1746539439492,-402.30043803,0.00019178,2]
[360077473,1746539439502,-402.71098712,0.00019178,2]
[360077475,1746539439512,-400.0,0.00019178,2]
[360077477,1746539439523,-410.33386623,0.00019178,2]
[360077479,1746539439532,-406.30028752,0.00019178,2]
[360077481,1746539439541,-233.76033808,0.00019178,2]
[360077483,1746539439551,-163.4935406,0.00019178,2]
[360077485,1746539439561,-208.10094571,0.00019178,2]
[360077487,1746539439571,-205.50026287,0.00019178,2]
[360077489,1746539439580,-919.75,0.00019178,2]
[360077491,1746539439589,-300.0,0.00019178,2]
[360077493,1746539439602,-400.0,0.00019178,2]
[360077495,1746539439613,-400.0,0.00019178,2]
[360077497,1746539439622,-400.0,0.00019178,2]
[360077499,1746539439631,-404.73978031,0.00019178,2]
[360077501,1746539439641,-402.56691022,0.00019178,2]
[360077503,1746539439651,-506.19767012,0.00019178,2]
[360077505,1746539439660,-400.0,0.00019178,2]
[360077507,1746539439669,-503.5525166,0.00019178,2]
[360077509,1746539439680,-402.30534856,0.00019178,2]
[360077511,1746539439690,-401.61499065,0.00019178,2]
[360077513,1746539439699,-403.16813055,0.00019178,2]
[360077515,1746539439709,-400.0,0.00019178,2]
[360077517,1746539439718,-844.48,0.00019178,2]
[360077519,1746539439727,-400.0,0.00019178,2]
[360077521,1746539439736,-400.0,0.00019178,2]
[360077523,1746539439746,-400.0,0.00019178,2]
[360077525,1746539439755,-401.59505143,0.00019178,2]
[360077527,1746539439764,-400.0,0.00019178,2]
[360077529,1746539439774,-407.36300052,0.00019178,2]
[360077531,1746539439783,-400.0,0.00019178,2]
[360077533,1746539439793,-400.0,0.00019178,2]
[360077535,1746539439803,-403.43878694,0.00019178,2]
[360077537,1746539439812,-400.0,0.00019178,2]
[360077539,1746539439821,-400.0,0.00019178,2]
[360077542,1746539439832,-403.35361379,0.00019178,2]
[360077544,1746539439842,-400.0,0.00019178,2]
[360077546,1746539439851,-401.04113812,0.00019178,2]
[360077548,1746539439860,-454.11968997,0.00019178,2]
[360077550,1746539439870,-400.0,0.00019178,2]
[360077552,1746539439879,-1266.61,0.00019178,2]
[360077554,1746539439888,-511.39966207,0.00019178,2]
[360077556,1746539439897,-400.0,0.00019178,2]
[360077558,1746539439906,-403.35901156,0.00019178,2]
[360077560,1746539439916,-406.9384835,0.00019178,2]
[360077562,1746539439925,-400.0,0.00019178,2]
[360077564,1746539439934,-513.04252661,0.00019178,2]
[360077566,1746539439943,-403.49404676,0.00019178,2]
[360077568,1746539439953,-400.0,0.00019178,2]
[360077570,1746539439962,-401.83508776,0.00019178,2]
[360077572,1746539439971,-400.0,0.00019178,2]
[360077574,1746539439982,-400.0,0.00019178,2]
[360077575,1746539439991,-400.0,0.00019178,2]
[360077576,1746539440000,-400.0,0.00019178,2]
[360077577,1746539440009,-400.0,0.00019178,2]
[360077578,1746539440018,-401.30563412,0.00019178,2]
[360077579,1746539440028,-400.0,0.00019178,2]
[360077580,1746539440038,-400.0,0.00019178,2]
[360077581,1746539440047,-400.0,0.00019178,2]
[360077582,1746539440056,-400.0,0.00019178,2]
[360077583,1746539440065,-400.0,0.00019178,2]
[360077584,1746539440074,-400.0,0.00019178,2]
[360077585,1746539440083,-400.0,0.00019178,2]
[360077586,1746539440093,-480.12203808,0.00019178,2]
[360077587,1746539440102,-231.68795328,0.00019178,2]
[360077589,1746539440111,-400.0,0.00019178,2]
[360077590,1746539440120,-330.15802287,0.00019178,2]
[360077592,1746539440130,-400.0,0.00019178,2]
[360077594,1746539440139,-400.0,0.00019178,2]
[360077596,1746539440149,-956.4,0.00019178,2]
[360077598,1746539440158,-401.96523987,0.00019178,2]
[360077601,1746539440167,-400.0,0.00019178,2]
[360077602,1746539440177,-409.23229525,0.00019178,2]
[360077605,1746539440187,-582.76,0.00019178,2]
[360077607,1746539440196,-503.4654279,0.00019178,2]
[360077609,1746539440206,-400.0,0.00019178,2]
[360077611,1746539440216,-502.88033462,0.00019178,2]
[360077613,1746539440225,-400.0,0.00019178,2]
[360077614,1746539440235,-405.17132737,0.00019178,2]
[360077615,1746539440244,-495.35070066,0.00019178,2]
[360077616,1746539440253,-400.13538946,0.00019178,2]
[360077617,1746539440262,-400.0,0.00019178,2]
[360077618,1746539440271,-400.0,0.00019178,2]
[360077619,1746539440281,-400.0,0.00019178,2]
[360077621,1746539440290,-400.0,0.00019178,2]
[360077623,1746539440299,-400.0,0.00019178,2]
[360077625,1746539440309,-401.28101685,0.00019178,2]
[360077627,1746539440318,-583.52,0.00019178,2]
[360077629,1746539440327,-425.58788198,0.00019178,2]
[360077631,1746539440336,-400.0,0.00019178,2]
[360077633,1746539440345,-400.0,0.00019178,2]
[360077635,1746539440354,-402.01282132,0.00019178,2]
[360077636,1746539440363,-400.0,0.00019178,2]
[360077638,1746539440373,-400.0,0.00019178,2]
[360077640,1746539440382,-400.0,0.00019178,2]
[360077642,1746539440391,-400.17178998,0.00019178,2]
[360077644,1746539440401,-400.0,0.00019178,2]
[360077646,1746539440410,-400.0,0.00019178,2]
[360077648,1746539440419,-2938.9,0.00019178,2]
[360077650,1746539440427,-400.0,0.00019178,2]
[360077652,1746539440436,-203.04065088,0.00019178,2]
[360077654,1746539440446,-400.0,0.00019178,2]
[360077656,1746539440455,-400.0,0.00019178,2]
[360077658,1746539440464,-400.0,0.00019178,2]
[360077660,1746539440474,-500.0,0.00019178,2]
[360077662,1746539440483,-500.0,0.00019178,2]
[360077664,1746539440492,-500.0,0.00019178,2]
[360077666,1746539440502,-500.0,0.00019178,2]
[360077668,1746539440511,-413.17676072,0.00019178,2]
[360077670,1746539440521,-412.26334584,0.00019178,2]
[360077672,1746539440532,-400.0,0.00019178,2]
[360077675,1746539440541,-400.0,0.00019178,2]
[360077677,1746539440551,-400.0,0.00019178,2]
[360077678,1746539440561,-400.0,0.00019178,2]
[360077680,1746539440570,-400.97084348,0.00019178,2]
[360077682,1746539440579,-400.0,0.00019178,2]
[360077684,1746539440588,-400.0,0.00019178,2]
[360077686,1746539440602,-400.0,0.00019178,2]
[360077689,1746539440611,-402.75411108,0.00019178,2]
[360077691,1746539440621,-400.0,0.00019178,2]
[360077693,1746539440631,-400.0,0.00019178,2]
[360077694,1746539440641,-400.0,0.00019178,2]
[360077697,1746539440650,-400.0,0.00019178,2]
[360077698,1746539440660,-407.18242743,0.00019178,2]
[360077700,1746539440669,-400.0,0.00019178,2]
[360077702,1746539440681,-504.00350299,0.00019178,2]
[360077705,1746539440691,-400.0,0.00019178,2]
[360077707,1746539440701,-400.0,0.00019178,2]
[360077709,1746539440711,-400.0,0.00019178,2]
[360077711,1746539440720,-400.0,0.00019178,2]
[360077713,1746539440730,-400.0,0.00019178,2]
[360077715,1746539440740,-415.3774956,0.00019178,2]
[360077717,1746539440749,-401.05920041,0.00019178,2]
[360077719,1746539440759,-413.30020207,0.00019178,2]
[360077721,1746539440769,-400.0,0.00019178,2]
[360077723,1746539440779,-1026.77,0.00019178,2]
[360077725,1746539440788,-400.0,0.00019178,2]
[360077727,1746539440797,-400.0,0.00019178,2]
[360077729,1746539440807,-400.0,0.00019178,2]
[360077731,1746539440816,-546.8,0.00019178,2]
[360077733,1746539440826,-510.75279138,0.00019178,2]
[360077735,1746539440835,-400.0,0.00019178,2]
[360077737,1746539440845,-502.25070254,0.00019178,2]
[360077739,1746539440854,-400.0,0.00019178,2]
[360077741,1746539440863,-400.0,0.00019178,2]
[360077743,1746539440872,-400.0,0.00019178,2]
[360077745,1746539440881,-400.0,0.00019178,2]
[360077747,1746539440891,-1225.83,0.00019178,2]
[360077749,1746539440900,-406.00580165,0.00019178,2]
[360077751,1746539440909,-437.09755673,0.00019178,2]
[360077753,1746539440918,-400.0,0.00019178,2]
[360077755,1746539440927,-594.14,0.00019178,2]
[360077757,1746539440936,-1272.7,0.00019178,2]
[360077759,1746539440945,-400.0,0.00019178,2]
[360077761,1746539440954,-404.05696483,0.00019178,2]
[360077762,1746539440963,-1316.28,0.00019178,2]
[360077763,1746539440972,-400.91459012,0.00019178,2]
[360077764,1746539440981,-400.0,0.00019178,2]
[360077765,1746539440990,-400.0,0.00019178,2]
[360077766,1746539441000,-446.38,0.00019178,2]
[360077767,1746539441009,-400.0,0.00019178,2]
[360077768,1746539441018,-400.0,0.00019178,2]
[360077769,1746539441029,-500.0,0.00019178,2]
[360077770,1746539441038,-400.0,0.00019178,2]
[360077771,1746539441047,-545.89502614,0.00019178,2]
[360077772,1746539441057,-400.0,0.00019178,2]
[360077773,1746539441066,-577.03,0.00019178,2]
[360077774,1746539441075,-658.09,0.00019178,2]
[360077775,1746539441085,-424.31932119,0.00019178,2]
[360077776,1746539441094,-400.0,0.00019178,2]
[360077777,1746539441104,-400.0,0.00019178,2]
[360077778,1746539441113,-400.0,0.00019178,2]
[360077779,1746539441122,-400.0,0.00019178,2]
[360077780,1746539441131,-505.87371042,0.00019178,2]
[360077781,1746539441140,-400.0,0.00019178,2]
[360077782,1746539441150,-400.0,0.00019178,2]
[360077783,1746539441159,-400.0,0.00019178,2]
[360077784,1746539441168,-1000.0,0.00019178,2]
[360077785,1746539441177,-400.0,0.00019178,2]
[360077786,1746539441186,-400.0,0.00019178,2]
[360077787,1746539441195,-668.53,0.00019178,2]
[360077788,1746539441204,-402.82132138,0.00019178,2]
[360077789,1746539441213,-358.0,0.00019178,2]
[360077790,1746539441222,-936.27,0.00019178,2]
[360077791,1746539441231,-402.76247651,0.00019178,2]
[360077793,1746539441241,-400.0,0.00019178,2]
[360077795,1746539441250,-400.0,0.00019178,2]
[360077797,1746539441259,-400.0,0.00019178,2]
[360077798,1746539441268,-400.0,0.00019178,2]
[360077799,1746539441278,-5195.91,0.00019178,2]
[360077801,1746539441287,-1093.27,0.00019178,2]
[360077803,1746539441297,-305.90250876,0.00019178,2]
[360077805,1746539441306,-500.84393885,0.00019178,2]
[360077807,1746539441315,-400.0,0.00019178,2]
[360077808,1746539441325,-400.0,0.00019178,2]
[360077810,1746539441334,-404.34239598,0.00019178,2]
[360077812,1746539441343,-400.0,0.00019178,2]
[360077814,1746539441352,-405.75510111,0.00019178,2]
[360077815,1746539441361,-400.0,0.00019178,2]
[360077817,1746539441371,-228.28860489,0.00019178,2]
[360077819,1746539441379,-400.0,0.00019178,2]
[360077821,1746539441389,-400.0,0.00019178,2]
[360077822,1746539441398,-400.0,0.00019178,2]
[360077824,1746539441407,-400.0,0.00019178,2]
[360077826,1746539441416,-403.89508288,0.00019178,2]
[360077828,1746539441425,-5728.17,0.00019178,2]
[360077829,1746539441434,-400.0,0.00019178,2]
[360077831,1746539441443,-400.0,0.00019178,2]
[360077833,1746539441452,-400.0,0.00019178,2]
[360077835,1746539441461,-400.0,0.00019178,2]
[360077837,1746539441469,-412.26638067,0.00019178,2]
[360077838,1746539441478,-400.0,0.00019178,2]
[360077840,1746539441487,-215.71848918,0.00019178,2]
[360077842,1746539441497,-400.0,0.00019178,2]
[360077844,1746539441506,-432.8886665,0.00019178,2]
[360077846,1746539441524,-402.88448659,0.00019178,2]
[360077848,1746539441537,-400.0,0.00019178,2]
[360077850,1746539441546,-486.9,0.00019178,2]
[360077852,1746539441556,-3328.82,0.00019178,2]
[360077854,1746539441566,-400.0,0.00019178,2]
[360077856,1746539441576,-400.0,0.00019178,2]
[360077858,1746539441586,-400.0,0.00019178,2]
[360077859,1746539441598,-400.0,0.00019178,2]
[360077861,1746539441608,-400.0,0.00019178,2]
[360077863,1746539441619,-856.22,0.00019178,2]
[360077865,1746539441629,-400.0,0.00019178,2]
[360077867,1746539441639,-694.73,0.00019178,2]
[360077869,1746539441649,-523.52926567,0.00019178,2]
[360077871,1746539441659,-1407.44,0.00019178,2]
[360077872,1746539441669,-400.0,0.00019178,2]
[360077874,1746539441681,-400.42065851,0.00019178,2]
[360077876,1746539441691,-400.0,0.00019178,2]
[360077878,1746539441700,-400.0,0.00019178,2]
[360077880,1746539441710,-402.56655068,0.00019178,2]
[360077882,1746539441720,-618.79,0.00019178,2]
[360077883,1746539441729,-400.0,0.00019178,2]
[360077885,1746539441739,-409.52,0.00019178,2]
[360077887,1746539441748,-406.66191847,0.00019178,2]
[360077889,1746539441757,-400.0,0.00019178,2]
[360077891,1746539441767,-400.0,0.00019178,2]
[360077893,1746539441776,-400.0,0.00019178,2]
[360077895,1746539441786,-818.31,0.00019178,2]
[360077897,1746539441796,-1515.05,0.00019178,2]
[360077898,1746539441806,-405.33597327,0.00019178,2]
[360077900,1746539441816,-520.09874239,0.00019178,2]
[360077902,1746539441825,-400.0,0.00019178,2]
[360077904,1746539441835,-1414.26,0.00019178,2]
[360077906,1746539441845,-407.00011108,0.00019178,2]
[360077908,1746539441854,-400.0,0.00019178,2]
[360077910,1746539441864,-408.25050653,0.00019178,2]
[360077912,1746539441874,-969.47,0.00019178,2]
[360077913,1746539441884,-400.0,0.00019178,2]
[360077915,1746539441896,-400.0,0.00019178,2]
[360077917,1746539441906,-400.0,0.00019178,2]
[360077919,1746539441916,-400.0,0.00019178,2]
[360077921,1746539441926,-400.0,0.00019178,2]
[360077923,1746539441936,-400.0,0.00019178,2]
[360077924,1746539441946,-851.5,0.00019178,2]
[360077926,1746539441956,-404.03946871,0.00019178,2]
[360077928,1746539441966,-400.0,0.00019178,2]
[360077930,1746539441976,-400.0,0.00019178,2]
[360077932,1746539441987,-442.72,0.00019178,2]
[360077934,1746539441997,-500.0,0.00019178,2]
[360077936,1746539442007,-500.0,0.00019178,2]
[360077938,1746539442018,-500.0,0.00019178,2]
[360077940,1746539442028,-400.0,0.00019178,2]
[360077941,1746539442038,-314.86694994,0.00019178,2]
[360077943,1746539442048,-1731.95,0.00019178,2]